[Event "Live Chess"]
[Site "Chess.com"]
[Date "2023.05.21"]
[Round "-"]
[White "Tilbs_12"]
[Black "alanmike75"]
[Result "1-0"]
[WhiteElo "1560"]
[BlackElo "1583"]
[TimeControl "300"]
[EndTime "18:44:37 PDT"]
[Termination "Tilbs_12 won on time"]

1. e4 {[%clk 0:04:59]} 1... e5 {[%clk 0:04:57.5]} 2. Nf3 {[%clk 0:04:56.3]} 2...
Nc6 {[%clk 0:04:56.2]} 3. Bc4 {[%clk 0:04:54.7]} 3... Be7 {[%clk 0:04:54.2]} 4.
c3 {[%clk 0:04:50.5]} 4... Nf6 {[%clk 0:04:52.9]} 5. d4 {[%clk 0:04:46]} 5... d6
{[%clk 0:04:51.8]} 6. d5 {[%clk 0:04:38.6]} 6... Nb8 {[%clk 0:04:50.4]} 7. Bd3
{[%clk 0:04:36.8]} 7... O-O {[%clk 0:04:48.3]} 8. O-O {[%clk 0:04:35.4]} 8... c6
{[%clk 0:04:47.3]} 9. c4 {[%clk 0:04:34.3]} 9... a5 {[%clk 0:04:43.4]} 10. Nc3
{[%clk 0:04:32.2]} 10... Bg4 {[%clk 0:04:33.1]} 11. h3 {[%clk 0:04:10.5]} 11...
Bh5 {[%clk 0:04:31.1]} 12. Be3 {[%clk 0:04:06.7]} 12... Na6 {[%clk 0:04:18.7]}
13. a3 {[%clk 0:04:02.4]} 13... Rc8 {[%clk 0:04:05.6]} 14. Be2 {[%clk
0:03:56.7]} 14... Bg6 {[%clk 0:04:02.6]} 15. Nd2 {[%clk 0:03:44]} 15... c5
{[%clk 0:03:57.2]} 16. Rc1 {[%clk 0:03:32.6]} 16... Nc7 {[%clk 0:03:55.1]} 17.
Re1 {[%clk 0:03:28.9]} 17... Qd7 {[%clk 0:03:53.7]} 18. b3 {[%clk 0:03:12.9]}
18... Nfe8 {[%clk 0:03:35.9]} 19. Na4 {[%clk 0:03:06.2]} 19... Na8 {[%clk
0:03:18.1]} 20. Bd3 {[%clk 0:03:00.5]} 20... f5 {[%clk 0:03:08.5]} 21. exf5
{[%clk 0:02:43.4]} 21... Bxf5 {[%clk 0:03:07]} 22. Ne4 {[%clk 0:02:40.2]} 22...
Bxe4 {[%clk 0:02:57.2]} 23. Bxe4 {[%clk 0:02:36.2]} 23... Nf6 {[%clk 0:02:56.1]}
24. Bc2 {[%clk 0:02:27]} 24... Rce8 {[%clk 0:02:54.3]} 25. Qd2 {[%clk
0:02:07.5]} 25... b6 {[%clk 0:02:52.3]} 26. Nc3 {[%clk 0:02:05.7]} 26... Bd8
{[%clk 0:02:47.6]} 27. Nb5 {[%clk 0:02:03.7]} 27... Nc7 {[%clk 0:02:44.7]} 28.
a4 {[%clk 0:01:53.5]} 28... Nxb5 {[%clk 0:02:42]} 29. axb5 {[%clk 0:01:52.9]}
29... Kh8 {[%clk 0:02:33.3]} 30. Qe2 {[%clk 0:01:42.8]} 30... Qf7 {[%clk
0:02:28.9]} 31. Rf1 {[%clk 0:01:40]} 31... Nh5 {[%clk 0:02:16.7]} 32. g3 {[%clk
0:01:15.4]} 32... Nf6 {[%clk 0:01:58.4]} 33. Bd2 {[%clk 0:01:13.7]} 33... Qh5
{[%clk 0:01:49.8]} 34. Qxh5 {[%clk 0:01:11.9]} 34... Nxh5 {[%clk 0:01:48.4]} 35.
Rce1 {[%clk 0:01:11.4]} 35... Nf6 {[%clk 0:01:42.3]} 36. Kg2 {[%clk 0:01:10.3]}
36... g6 {[%clk 0:01:29.5]} 37. Bg5 {[%clk 0:01:03.2]} 37... Nh5 {[%clk
0:01:21.5]} 38. Bxd8 {[%clk 0:01:01.3]} 38... Rxd8 {[%clk 0:01:20.2]} 39. f3
{[%clk 0:00:54.1]} 39... Kg7 {[%clk 0:01:18]} 40. Re2 {[%clk 0:00:46.8]} 40...
Rf7 {[%clk 0:01:16.6]} 41. Ref2 {[%clk 0:00:45.9]} 41... Rdf8 {[%clk 0:01:15.1]}
42. Bb1 {[%clk 0:00:42.4]} 42... Nf6 {[%clk 0:01:07.2]} 43. g4 {[%clk
0:00:40.2]} 43... h6 {[%clk 0:01:00.8]} 44. Kg3 {[%clk 0:00:39.3]} 44... Nd7
{[%clk 0:00:50.1]} 45. f4 {[%clk 0:00:36.6]} 45... exf4+ {[%clk 0:00:47.3]} 46.
Rxf4 {[%clk 0:00:35.8]} 46... Rxf4 {[%clk 0:00:45.1]} 47. Rxf4 {[%clk 0:00:35]}
47... Rxf4 {[%clk 0:00:43.9]} 48. Kxf4 {[%clk 0:00:34.4]} 48... Ne5 {[%clk
0:00:42.7]} 49. h4 {[%clk 0:00:30.7]} 49... Kf6 {[%clk 0:00:40.6]} 50. g5+
{[%clk 0:00:28.7]} 50... hxg5+ {[%clk 0:00:38.5]} 51. hxg5+ {[%clk 0:00:28]}
51... Kf7 {[%clk 0:00:36]} 52. Ke4 {[%clk 0:00:26.6]} 52... Nd7 {[%clk
0:00:25.7]} 53. Kf4 {[%clk 0:00:24.3]} 53... Nf8 {[%clk 0:00:22.2]} 54. Be4
{[%clk 0:00:19.7]} 54... Nd7 {[%clk 0:00:19.5]} 55. Bf3 {[%clk 0:00:18.8]} 55...
Ne5 {[%clk 0:00:17.7]} 56. Be2 {[%clk 0:00:14.5]} 56... Kg7 {[%clk 0:00:14.5]}
57. Ke4 {[%clk 0:00:12.3]} 57... Kf7 {[%clk 0:00:13]} 58. Bd1 {[%clk 0:00:10.7]}
58... Kg7 {[%clk 0:00:12]} 59. Kf4 {[%clk 0:00:08.1]} 59... Kf7 {[%clk
0:00:10.3]} 60. Bc2 {[%clk 0:00:06.9]} 60... Ke7 {[%clk 0:00:07.7]} 61. Ke4
{[%clk 0:00:06.6]} 61... Kf7 {[%clk 0:00:06.7]} 62. Kf4 {[%clk 0:00:06.5]} 62...
Kf8 {[%clk 0:00:04.7]} 63. Ke4 {[%clk 0:00:06.4]} 63... Kg7 {[%clk 0:00:03.7]}
64. Kf4 {[%clk 0:00:06]} 64... Kf8 {[%clk 0:00:03.1]} 65. Ke4 {[%clk 0:00:05.5]}
65... Kg7 {[%clk 0:00:02.4]} 66. Kf4 {[%clk 0:00:05.2]} 66... Kf7 {[%clk
0:00:01.7]} 67. Kg3 {[%clk 0:00:05]} 67... Kf8 {[%clk 0:00:00.6]} 68. Kf4 {[%clk
0:00:04.8]} 68... Kg7 {[%clk 0:00:00.1]} 69. Ke4 {[%clk 0:00:04.4]} 1-0

[Event "Live Chess"]
[Site "Chess.com"]
[Date "2023.05.21"]
[Round "-"]
[White "Biranidun"]
[Black "Hussamalhaidar"]
[Result "1-0"]
[WhiteElo "2580"]
[BlackElo "1113"]
[TimeControl "300"]
[EndTime "18:45:13 PDT"]
[Termination "Biranidun won by checkmate"]

1. e4 {[%clk 0:04:59.2]} 1... Nc6 {[%clk 0:04:52.6]} 2. Nf3 {[%clk 0:04:58]}
2... b6 {[%clk 0:04:51.6]} 3. d4 {[%clk 0:04:57]} 3... Bb7 {[%clk 0:04:50.7]} 4.
d5 {[%clk 0:04:56.5]} 4... Nb8 {[%clk 0:04:46.9]} 5. Bd3 {[%clk 0:04:54.4]} 5...
e6 {[%clk 0:04:45]} 6. c4 {[%clk 0:04:52.8]} 6... exd5 {[%clk 0:04:41.2]} 7.
exd5 {[%clk 0:04:52.7]} 7... Bc5 {[%clk 0:04:38.3]} 8. O-O {[%clk 0:04:51.7]}
8... c6 {[%clk 0:04:29.3]} 9. Nc3 {[%clk 0:04:46.5]} 9... d6 {[%clk 0:04:10]}
10. Re1+ {[%clk 0:04:45.1]} 10... Ne7 {[%clk 0:04:05.6]} 11. Ng5 {[%clk
0:04:38.7]} 11... O-O {[%clk 0:03:53.8]} 12. Bxh7+ {[%clk 0:04:37]} 12... Kh8
{[%clk 0:03:50.7]} 13. Qh5 {[%clk 0:04:36.9]} 13... g6 {[%clk 0:03:24.8]} 14.
Bxg6+ {[%clk 0:04:35.9]} 14... Kg7 {[%clk 0:03:22.6]} 15. Qh7+ {[%clk
0:04:35.8]} 15... Kf6 {[%clk 0:03:21.1]} 16. Nce4+ {[%clk 0:04:35.7]} 16... Ke5
{[%clk 0:03:13.2]} 17. Nf3# {[%clk 0:04:35.6]} 1-0

[Event "Live Chess"]
[Site "Chess.com"]
[Date "2023.05.21"]
[Round "-"]
[White "Tushinskiy"]
[Black "domrobson"]
[Result "1-0"]
[WhiteElo "2179"]
[BlackElo "1756"]
[TimeControl "300"]
[EndTime "18:45:19 PDT"]
[Termination "Tushinskiy won by resignation"]

1. d4 {[%clk 0:04:55.7]} 1... Nf6 {[%clk 0:04:58.9]} 2. c3 {[%clk 0:04:55.6]}
2... e6 {[%clk 0:04:58.3]} 3. Nf3 {[%clk 0:04:47.4]} 3... d5 {[%clk 0:04:57.3]}
4. Bf4 {[%clk 0:04:46.7]} 4... c5 {[%clk 0:04:56.3]} 5. e3 {[%clk 0:04:45.6]}
5... Nc6 {[%clk 0:04:55.6]} 6. Bd3 {[%clk 0:04:44.4]} 6... Be7 {[%clk
0:04:53.1]} 7. Bg3 {[%clk 0:04:43.3]} 7... h6 {[%clk 0:04:51.8]} 8. Nbd2 {[%clk
0:04:42.7]} 8... Bd6 {[%clk 0:04:49.5]} 9. Ne5 {[%clk 0:04:40.7]} 9... Nxe5
{[%clk 0:04:47.8]} 10. dxe5 {[%clk 0:04:40.6]} 10... d4 {[%clk 0:04:39.4]} 11.
exf6 {[%clk 0:04:29.9]} 1-0

[Event "Live Chess"]
[Site "Chess.com"]
[Date "2023.05.21"]
[Round "-"]
[White "NateSolon"]
[Black "GEMdzq"]
[Result "1-0"]
[WhiteElo "2665"]
[BlackElo "2251"]
[TimeControl "300"]
[EndTime "18:45:50 PDT"]
[Termination "NateSolon won by checkmate"]

1. d4 {[%clk 0:04:59.7]} 1... Nf6 {[%clk 0:04:58.7]} 2. Nc3 {[%clk 0:04:58.8]}
2... e6 {[%clk 0:04:58]} 3. e4 {[%clk 0:04:57.2]} 3... c5 {[%clk 0:04:51.7]} 4.
d5 {[%clk 0:04:55.9]} 4... d6 {[%clk 0:04:48.5]} 5. Bb5+ {[%clk 0:04:50.1]} 5...
Bd7 {[%clk 0:04:37.6]} 6. dxe6 {[%clk 0:04:49.2]} 6... Bxb5 {[%clk 0:04:36.4]}
7. exf7+ {[%clk 0:04:47.2]} 7... Kxf7 {[%clk 0:04:35.3]} 8. Nxb5 {[%clk
0:04:46.3]} 8... Qa5+ {[%clk 0:04:32.5]} 9. Nc3 {[%clk 0:04:45.5]} 9... Nc6
{[%clk 0:04:25.3]} 10. Nf3 {[%clk 0:04:44.5]} 10... Be7 {[%clk 0:04:11.2]} 11.
O-O {[%clk 0:04:42.4]} 11... Rhf8 {[%clk 0:04:09.7]} 12. Qe2 {[%clk 0:04:12.5]}
12... Kg8 {[%clk 0:03:58.7]} 13. Bg5 {[%clk 0:04:10.9]} 13... Rae8 {[%clk
0:03:57]} 14. Rad1 {[%clk 0:04:08.6]} 14... Qb4 {[%clk 0:03:50.6]} 15. Bc1
{[%clk 0:03:31]} 15... c4 {[%clk 0:03:27.2]} 16. a3 {[%clk 0:03:24.8]} 16... Qc5
{[%clk 0:03:26.1]} 17. Be3 {[%clk 0:03:23.5]} 17... Qh5 {[%clk 0:03:18.2]} 18.
Qxc4+ {[%clk 0:03:22.6]} 18... Kh8 {[%clk 0:03:16.7]} 19. h3 {[%clk 0:03:19.2]}
19... Bd8 {[%clk 0:02:52.3]} 20. Qb5 {[%clk 0:03:03.3]} 20... Ne5 {[%clk
0:02:31]} 21. Nxe5 {[%clk 0:02:58.4]} 21... Rxe5 {[%clk 0:02:28.9]} 22. Qxb7
{[%clk 0:02:53.1]} 22... Qg6 {[%clk 0:01:59.1]} 23. Rxd6 {[%clk 0:02:46.9]}
23... Rh5 {[%clk 0:01:57.6]} 24. Rfd1 {[%clk 0:02:24.9]} 24... Ba5 {[%clk
0:01:50.5]} 25. b4 {[%clk 0:02:16.5]} 25... Rxh3 {[%clk 0:01:37.7]} 26. bxa5
{[%clk 0:02:05.9]} 26... Rxe3 {[%clk 0:01:35.1]} 27. fxe3 {[%clk 0:01:58.3]}
27... Qg3 {[%clk 0:01:34.2]} 28. Rxf6 {[%clk 0:01:10.7]} 28... Qxe3+ {[%clk
0:01:29.3]} 29. Kh1 {[%clk 0:01:10]} 29... gxf6 {[%clk 0:01:27.9]} 30. Qc7
{[%clk 0:01:04.4]} 30... Rg8 {[%clk 0:01:10.2]} 31. Nd5 {[%clk 0:00:37.6]} 31...
Qe2 {[%clk 0:01:03.1]} 32. Rg1 {[%clk 0:00:16.3]} 32... Qxe4 {[%clk 0:01:02.2]}
33. Nf4 {[%clk 0:00:15.3]} 33... Rg4 {[%clk 0:00:44.8]} 34. Qc8+ {[%clk
0:00:13.5]} 34... Kg7 {[%clk 0:00:42.5]} 35. Qxg4+ {[%clk 0:00:12.4]} 35... Kf7
{[%clk 0:00:39.4]} 36. Rd1 {[%clk 0:00:12.1]} 36... f5 {[%clk 0:00:35.8]} 37.
Rd7+ {[%clk 0:00:10.7]} 37... Ke8 {[%clk 0:00:33.9]} 38. Qg7 {[%clk 0:00:06.8]}
38... Qe1+ {[%clk 0:00:33.2]} 39. Kh2 {[%clk 0:00:06.1]} 39... Qh4+ {[%clk
0:00:32.3]} 40. Nh3 {[%clk 0:00:05.8]} 40... Qh6 {[%clk 0:00:20.2]} 41. Qf7#
{[%clk 0:00:04.8]} 1-0

[Event "Live Chess"]
[Site "Chess.com"]
[Date "2023.05.21"]
[Round "-"]
[White "Fazer180"]
[Black "chessfiction"]
[Result "0-1"]
[WhiteElo "1764"]
[BlackElo "2357"]
[TimeControl "300"]
[EndTime "18:46:04 PDT"]
[Termination "chessfiction won by checkmate"]

1. e4 {[%clk 0:04:58.8]} 1... d5 {[%clk 0:04:59]} 2. exd5 {[%clk 0:04:57.4]}
2... c6 {[%clk 0:04:58.2]} 3. dxc6 {[%clk 0:04:54.7]} 3... Nxc6 {[%clk
0:04:56.9]} 4. Nc3 {[%clk 0:04:52.6]} 4... e5 {[%clk 0:04:52.8]} 5. Bb5 {[%clk
0:04:43.4]} 5... Nf6 {[%clk 0:04:50.3]} 6. Bxc6+ {[%clk 0:04:41.7]} 6... bxc6
{[%clk 0:04:49]} 7. d3 {[%clk 0:04:38.8]} 7... Bc5 {[%clk 0:04:47.5]} 8. h3
{[%clk 0:04:25.9]} 8... O-O {[%clk 0:04:43.1]} 9. Nf3 {[%clk 0:04:23.9]} 9...
Re8 {[%clk 0:04:28.2]} 10. O-O {[%clk 0:04:21.7]} 10... Rb8 {[%clk 0:04:26.5]}
11. Rb1 {[%clk 0:04:10.2]} 11... Bf5 {[%clk 0:04:23.9]} 12. Be3 {[%clk
0:04:06.4]} 12... Bd6 {[%clk 0:04:19.4]} 13. Bxa7 {[%clk 0:04:00.8]} 13... Ra8
{[%clk 0:04:17.8]} 14. Be3 {[%clk 0:03:58.4]} 14... Qd7 {[%clk 0:04:17.4]} 15.
Bg5 {[%clk 0:03:38.5]} 15... Nh5 {[%clk 0:04:07.4]} 16. Nxe5 {[%clk 0:03:14.5]}
16... Rxe5 {[%clk 0:04:01.3]} 17. Qxh5 {[%clk 0:03:13.2]} 17... h6 {[%clk
0:03:53.7]} 18. Bf4 {[%clk 0:03:05.3]} 18... Bg6 {[%clk 0:03:43.8]} 19. Qf3
{[%clk 0:02:52.7]} 19... Rf5 {[%clk 0:03:42.6]} 20. g3 {[%clk 0:02:44.5]} 20...
Bxf4 {[%clk 0:03:34.5]} 21. gxf4 {[%clk 0:02:42.7]} 21... Bh5 {[%clk 0:03:13.3]}
22. Qe3 {[%clk 0:02:39.1]} 22... Re8 {[%clk 0:03:11.5]} 23. Ne4 {[%clk
0:02:32.1]} 23... Re6 {[%clk 0:03:00]} 24. Kh2 {[%clk 0:02:17.9]} 24... Qc7
{[%clk 0:02:55.6]} 25. Rg1 {[%clk 0:02:10]} 25... Rxf4 {[%clk 0:02:54.6]} 26.
Qg3 {[%clk 0:02:09.1]} 26... Rg6 {[%clk 0:02:52.4]} 27. Qxg6 {[%clk 0:01:29.3]}
27... Rxf2+ {[%clk 0:02:46.5]} 28. Kh1 {[%clk 0:00:52.7]} 28... Qh2# {[%clk
0:02:46.4]} 0-1

[Event "Live Chess"]
[Site "Chess.com"]
[Date "2023.05.21"]
[Round "-"]
[White "smoggyrabbit"]
[Black "garyjc"]
[Result "1-0"]
[WhiteElo "1749"]
[BlackElo "1046"]
[TimeControl "300"]
[EndTime "18:46:17 PDT"]
[Termination "smoggyrabbit won by resignation"]

1. d4 {[%clk 0:04:58.9]} 1... Nf6 {[%clk 0:04:57.9]} 2. Nf3 {[%clk 0:04:58]}
2... g6 {[%clk 0:04:56.9]} 3. e3 {[%clk 0:04:55.6]} 3... Bg7 {[%clk 0:04:55.7]}
4. Be2 {[%clk 0:04:54.7]} 4... O-O {[%clk 0:04:54.7]} 5. O-O {[%clk 0:04:53.8]}
5... d6 {[%clk 0:04:53.7]} 6. b3 {[%clk 0:04:52.7]} 6... Nbd7 {[%clk 0:04:51.9]}
7. Bb2 {[%clk 0:04:51.8]} 7... Re8 {[%clk 0:04:51.1]} 8. c4 {[%clk 0:04:49.3]}
8... b6 {[%clk 0:04:38.1]} 9. Nbd2 {[%clk 0:04:28]} 9... Bb7 {[%clk 0:04:19.3]}
10. Qc2 {[%clk 0:04:26.4]} 10... Bxf3 {[%clk 0:04:08.1]} 11. Bxf3 {[%clk
0:04:21.4]} 11... e5 {[%clk 0:04:04.3]} 12. Bxa8 {[%clk 0:04:19.8]} 12... Qxa8
{[%clk 0:04:01.3]} 13. dxe5 {[%clk 0:04:09.4]} 13... Nxe5 {[%clk 0:03:53.7]} 14.
Bxe5 {[%clk 0:04:06.9]} 14... dxe5 {[%clk 0:03:49.7]} 15. Nf3 {[%clk 0:04:02.1]}
15... e4 {[%clk 0:03:47.8]} 16. Nd4 {[%clk 0:03:57.5]} 16... c5 {[%clk
0:03:22.8]} 17. Nb5 {[%clk 0:03:54.9]} 17... Qb7 {[%clk 0:03:03.9]} 18. Nd6
{[%clk 0:03:51.9]} 18... Qd7 {[%clk 0:02:49.6]} 19. Nxe8 {[%clk 0:03:49.7]}
19... Qxe8 {[%clk 0:02:48.8]} 20. Rad1 {[%clk 0:03:46.4]} 20... Qe5 {[%clk
0:02:35.3]} 21. Rd8+ {[%clk 0:03:35.1]} 21... Bf8 {[%clk 0:02:32]} 22. h3 {[%clk
0:03:30.3]} 22... Kg7 {[%clk 0:02:19.1]} 23. Rfd1 {[%clk 0:03:27]} 23... Be7
{[%clk 0:02:15.8]} 24. R8d2 {[%clk 0:02:59.2]} 24... Nh5 {[%clk 0:01:13.5]} 25.
Qb2 {[%clk 0:02:47.1]} 25... Qxb2 {[%clk 0:01:06.5]} 26. Rxb2 {[%clk 0:02:47]}
26... Bf6 {[%clk 0:01:05.1]} 27. Rbd2 {[%clk 0:02:45]} 27... Bc3 {[%clk
0:00:53.2]} 28. Rd7 {[%clk 0:02:41.9]} 28... Nf6 {[%clk 0:00:48.3]} 29. Rxa7
{[%clk 0:02:40.1]} 1-0

[Event "Live Chess"]
[Site "Chess.com"]
[Date "2023.05.21"]
[Round "-"]
[White "KeithArkell"]
[Black "ChessClubLive"]
[Result "1-0"]
[WhiteElo "2573"]
[BlackElo "1493"]
[TimeControl "300"]
[EndTime "18:46:28 PDT"]
[Termination "KeithArkell won by resignation"]

1. d4 {[%clk 0:04:58.1]} 1... d5 {[%clk 0:04:55.3]} 2. Nf3 {[%clk 0:04:57.3]}
2... Nc6 {[%clk 0:04:48.8]} 3. c4 {[%clk 0:04:56.1]} 3... Bg4 {[%clk 0:04:45.8]}
4. Nc3 {[%clk 0:04:53]} 4... Bxf3 {[%clk 0:04:41.2]} 5. exf3 {[%clk 0:04:52.2]}
5... e6 {[%clk 0:04:37.7]} 6. cxd5 {[%clk 0:04:51.3]} 6... exd5 {[%clk
0:04:33.8]} 7. Bb5 {[%clk 0:04:50.9]} 7... Qe7+ {[%clk 0:04:19.8]} 8. Be3 {[%clk
0:04:48.9]} 8... Qd6 {[%clk 0:04:06.3]} 9. O-O {[%clk 0:04:45.2]} 9... O-O-O
{[%clk 0:04:04.9]} 10. Qa4 {[%clk 0:04:43.3]} 10... Nge7 {[%clk 0:03:56]} 11. g3
{[%clk 0:04:33.5]} 11... a6 {[%clk 0:03:55.3]} 12. Bxc6 {[%clk 0:04:26.4]} 12...
Nxc6 {[%clk 0:03:53]} 13. Rac1 {[%clk 0:04:20.9]} 13... Qb4 {[%clk 0:03:46.1]}
14. Qxb4 {[%clk 0:04:19.4]} 14... Nxb4 {[%clk 0:03:45]} 15. a3 {[%clk
0:04:18.6]} 15... Nd3 {[%clk 0:03:41.5]} 16. Rc2 {[%clk 0:04:17.4]} 16... c5
{[%clk 0:03:36.6]} 17. dxc5 {[%clk 0:04:14.3]} 17... Nxc5 {[%clk 0:03:35.1]} 18.
Na4 {[%clk 0:04:11.7]} 1-0

[Event "Live Chess"]
[Site "Chess.com"]
[Date "2023.05.21"]
[Round "-"]
[White "LiamBellwood"]
[Black "LodeshChess"]
[Result "1-0"]
[WhiteElo "2045"]
[BlackElo "1176"]
[TimeControl "300"]
[EndTime "18:46:31 PDT"]
[Termination "LiamBellwood won by resignation"]

1. d4 {[%clk 0:04:58.7]} 1... Nf6 {[%clk 0:04:58.6]} 2. Nc3 {[%clk 0:04:58.1]}
2... e6 {[%clk 0:04:56.2]} 3. Bf4 {[%clk 0:04:57.7]} 3... Bb4 {[%clk 0:04:54.9]}
4. Qd3 {[%clk 0:04:56.6]} 4... d5 {[%clk 0:04:49.2]} 5. a3 {[%clk 0:04:55.2]}
5... Bxc3+ {[%clk 0:04:47.9]} 6. Qxc3 {[%clk 0:04:55.1]} 6... O-O {[%clk
0:04:47.1]} 7. Qxc7 {[%clk 0:04:52.7]} 7... Qxc7 {[%clk 0:04:39.1]} 8. Bxc7
{[%clk 0:04:52.6]} 8... Ne4 {[%clk 0:04:38.4]} 9. Nf3 {[%clk 0:04:48.8]} 9...
Nc6 {[%clk 0:04:35.6]} 10. e3 {[%clk 0:04:43]} 10... b6 {[%clk 0:04:34.4]} 11.
Bd3 {[%clk 0:04:31]} 11... Bb7 {[%clk 0:04:15.3]} 12. c4 {[%clk 0:04:24.3]}
12... Nf6 {[%clk 0:03:59.1]} 13. Bg3 {[%clk 0:04:09.1]} 13... dxc4 {[%clk
0:03:53.9]} 14. Bxc4 {[%clk 0:04:09]} 14... Rac8 {[%clk 0:03:48]} 15. Bd3 {[%clk
0:03:55]} 15... Na5 {[%clk 0:03:38.4]} 16. O-O {[%clk 0:03:52.6]} 16... Bxf3
{[%clk 0:03:33.3]} 17. gxf3 {[%clk 0:03:52.5]} 17... Nb3 {[%clk 0:03:32.1]} 18.
Rad1 {[%clk 0:03:44]} 18... Nh5 {[%clk 0:03:04.9]} 19. Bb1 {[%clk 0:03:34.9]}
19... Nxg3 {[%clk 0:03:02.2]} 20. hxg3 {[%clk 0:03:32.1]} 20... Rc4 {[%clk
0:02:43]} 21. Ba2 {[%clk 0:03:29.3]} 21... Rc2 {[%clk 0:02:03.1]} 22. Bxb3
{[%clk 0:03:26.4]} 22... Rxb2 {[%clk 0:02:02.7]} 23. Rb1 {[%clk 0:03:24.6]}
23... Rd2 {[%clk 0:01:58.3]} 24. Rfd1 {[%clk 0:03:24.1]} 24... Rxd1+ {[%clk
0:01:55.7]} 25. Rxd1 {[%clk 0:03:20.2]} 25... Rc8 {[%clk 0:01:55.2]} 26. Rd2
{[%clk 0:03:13.6]} 26... Rc1+ {[%clk 0:01:53.6]} 27. Kg2 {[%clk 0:03:11.8]}
27... Rb1 {[%clk 0:01:50.8]} 28. Rc2 {[%clk 0:03:10.7]} 28... Kf8 {[%clk
0:01:48.5]} 29. Ba2 {[%clk 0:03:04.6]} 29... Rb5 {[%clk 0:01:40.8]} 30. Rc8+
{[%clk 0:03:03.4]} 30... Ke7 {[%clk 0:01:39.4]} 31. Rc7+ {[%clk 0:03:03.3]}
31... Kf6 {[%clk 0:01:37.5]} 32. Rxa7 {[%clk 0:03:03]} 32... Rb2 {[%clk
0:01:36.1]} 33. Bc4 {[%clk 0:03:00.5]} 33... g6 {[%clk 0:01:32.1]} 34. f4 {[%clk
0:02:53.5]} 34... h5 {[%clk 0:01:30.7]} 35. a4 {[%clk 0:02:44.8]} 35... Rb4
{[%clk 0:01:28.2]} 36. Bb5 {[%clk 0:02:43.8]} 36... Rb2 {[%clk 0:01:19.9]} 37.
Be8 {[%clk 0:02:42.7]} 37... Kf5 {[%clk 0:01:09.1]} 38. Kf3 {[%clk 0:02:42.2]}
1-0

[Event "Live Chess"]
[Site "Chess.com"]
[Date "2023.05.21"]
[Round "-"]
[White "Olisingapore"]
[Black "calcina"]
[Result "1/2-1/2"]
[WhiteElo "1798"]
[BlackElo "1595"]
[TimeControl "300"]
[EndTime "18:46:37 PDT"]
[Termination "Game drawn by repetition"]

1. d4 {[%clk 0:04:58]} 1... b5 {[%clk 0:04:55.9]} 2. Nf3 {[%clk 0:04:54.9]} 2...
Bb7 {[%clk 0:04:52.8]} 3. e3 {[%clk 0:04:52.6]} 3... Nf6 {[%clk 0:04:51.4]} 4.
Bxb5 {[%clk 0:04:48.3]} 4... g6 {[%clk 0:04:48.2]} 5. O-O {[%clk 0:04:32.6]}
5... Bg7 {[%clk 0:04:47.6]} 6. Be2 {[%clk 0:04:05.2]} 6... O-O {[%clk 0:04:44]}
7. Ne5 {[%clk 0:04:04.6]} 7... d6 {[%clk 0:04:37.7]} 8. Bf3 {[%clk 0:03:54.6]}
8... c6 {[%clk 0:04:28.5]} 9. Nd3 {[%clk 0:03:49.6]} 9... e5 {[%clk 0:04:23.4]}
10. dxe5 {[%clk 0:03:44.1]} 10... dxe5 {[%clk 0:04:21.3]} 11. Nxe5 {[%clk
0:03:42.9]} 11... Qc7 {[%clk 0:04:06.6]} 12. Nc4 {[%clk 0:03:23.8]} 12... Nbd7
{[%clk 0:04:01.3]} 13. b3 {[%clk 0:03:19]} 13... Rad8 {[%clk 0:03:58]} 14. Bb2
{[%clk 0:03:17.8]} 14... Ne5 {[%clk 0:03:51.1]} 15. Qe2 {[%clk 0:03:15]} 15...
Nxf3+ {[%clk 0:03:42.9]} 16. Qxf3 {[%clk 0:03:13.7]} 16... c5 {[%clk 0:03:36.8]}
17. Qe2 {[%clk 0:02:59.3]} 17... h5 {[%clk 0:03:28.8]} 18. Rd1 {[%clk 0:02:57]}
18... Ng4 {[%clk 0:03:25.9]} 19. g3 {[%clk 0:02:53.9]} 19... Rxd1+ {[%clk
0:03:04.8]} 20. Qxd1 {[%clk 0:02:49.2]} 20... Qc6 {[%clk 0:02:59.6]} 21. f3
{[%clk 0:02:43.3]} 21... Bxb2 {[%clk 0:02:50.9]} 22. Nxb2 {[%clk 0:02:42.3]}
22... Nxe3 {[%clk 0:02:48.5]} 23. Qe2 {[%clk 0:02:39.6]} 23... Re8 {[%clk
0:02:32.6]} 24. Nc3 {[%clk 0:02:34.6]} 24... Qxf3 {[%clk 0:02:20.1]} 25. Qxf3
{[%clk 0:02:24.7]} 25... Bxf3 {[%clk 0:02:20]} 26. Re1 {[%clk 0:02:20.7]} 26...
Bc6 {[%clk 0:02:10.9]} 27. Nc4 {[%clk 0:02:16.3]} 27... Nxc2 {[%clk 0:02:06.1]}
28. Rxe8+ {[%clk 0:02:14.4]} 28... Bxe8 {[%clk 0:02:04.2]} 29. Nd6 {[%clk
0:02:09.1]} 29... Kf8 {[%clk 0:01:54.3]} 30. Nxe8 {[%clk 0:02:02.7]} 30... Kxe8
{[%clk 0:01:54.2]} 31. Ne4 {[%clk 0:01:58.5]} 31... Nb4 {[%clk 0:01:44.6]} 32.
a3 {[%clk 0:01:56]} 32... Na6 {[%clk 0:01:41.9]} 33. Kf2 {[%clk 0:01:54.5]}
33... Kd7 {[%clk 0:01:38.5]} 34. Kf3 {[%clk 0:01:53.5]} 34... Kc6 {[%clk
0:01:36]} 35. Ng5 {[%clk 0:01:47.9]} 35... f6 {[%clk 0:01:33.2]} 36. Ne4 {[%clk
0:01:42.6]} 36... f5 {[%clk 0:01:30]} 37. Nc3 {[%clk 0:01:31.3]} 37... Nc7
{[%clk 0:01:23.2]} 38. Kf4 {[%clk 0:01:30.3]} 38... Nd5+ {[%clk 0:01:21.6]} 39.
Nxd5 {[%clk 0:01:28.6]} 39... Kxd5 {[%clk 0:01:19.5]} 40. Kg5 {[%clk 0:01:27.8]}
40... Kd4 {[%clk 0:01:18.6]} 41. Kxg6 {[%clk 0:01:23.6]} 41... Kc3 {[%clk
0:01:18.1]} 42. b4 {[%clk 0:01:22]} 42... cxb4 {[%clk 0:01:13.9]} 43. axb4
{[%clk 0:01:20.8]} 43... Kxb4 {[%clk 0:01:13.8]} 44. Kxf5 {[%clk 0:01:20.4]}
44... a5 {[%clk 0:01:12.7]} 45. g4 {[%clk 0:01:20.1]} 45... hxg4 {[%clk
0:01:09.1]} 46. Kxg4 {[%clk 0:01:19]} 46... a4 {[%clk 0:01:08.4]} 47. h4 {[%clk
0:01:18.9]} 47... a3 {[%clk 0:01:07.5]} 48. h5 {[%clk 0:01:18.8]} 48... a2
{[%clk 0:01:06.8]} 49. h6 {[%clk 0:01:18.7]} 49... a1=Q {[%clk 0:01:05.1]} 50.
Kg5 {[%clk 0:01:18.3]} 50... Qe5+ {[%clk 0:01:01.5]} 51. Kg6 {[%clk 0:01:09.1]}
51... Qe6+ {[%clk 0:00:59]} 52. Kg7 {[%clk 0:01:05.4]} 52... Qe7+ {[%clk
0:00:55.4]} 53. Kg8 {[%clk 0:00:59.1]} 53... Qg5+ {[%clk 0:00:49.7]} 54. Kh7
{[%clk 0:00:58.5]} 54... Kc5 {[%clk 0:00:46.7]} 55. Kh8 {[%clk 0:00:55.7]} 55...
Kd6 {[%clk 0:00:45.4]} 56. h7 {[%clk 0:00:54.8]} 56... Qf6+ {[%clk 0:00:38.9]}
57. Kg8 {[%clk 0:00:47.2]} 57... Qg6+ {[%clk 0:00:37.8]} 58. Kh8 {[%clk
0:00:45.5]} 58... Qh6 {[%clk 0:00:35.1]} 59. Kg8 {[%clk 0:00:42.7]} 59... Qg6+
{[%clk 0:00:31]} 60. Kh8 {[%clk 0:00:41.5]} 60... Qf6+ {[%clk 0:00:27.7]} 61.
Kg8 {[%clk 0:00:40.8]} 61... Qg6+ {[%clk 0:00:24.8]} 1/2-1/2